bitfinex/quotes_SOLUSD_20250607
["timestamp","ask_amount","ask_price","bid_price","bid_amount"]
[1749316695357,44.64964886,151.06,150.99,8.03077195]
[1749316695527,8.03077195,151.03,150.99,8.03077195]
[1749316697033,8.03077195,151.03,150.99,14.65356704]
[1749316699057,8.03077195,151.05,151.01,8.03077195]
[1749316699241,26.0,151.06,151.01,8.03077195]
[1749316699242,34.03077195,151.06,151.01,8.03077195]
[1749316699559,40.65068925,151.06,151.01,8.03077195]
[1749316700454,40.65068925,151.06,151.02,8.03077195]
[1749316701146,8.03077195,151.05,151.01,14.65281343]
[1749316701343,8.03077195,151.07,151.03,8.03077195]
[1749316701854,8.03077195,151.07,151.01,95.32204148]
[1749316701855,8.03077195,151.07,151.02,8.03077195]
[1749316702553,8.03077195,151.07,151.02,14.65217168]
[1749316704340,6.61938242,151.08,151.02,14.65217168]
[1749316704540,8.03077195,151.07,151.02,14.65217168]
[1749316705729,8.03077195,151.06,151.02,14.65217168]
[1749316708033,8.03077195,151.06,151.02,8.03077195]
[1749316708234,8.03077195,151.06,151.02,14.65237141]
[1749316710551,14.65067235,151.06,151.02,14.65237141]
[1749316711558,8.03077195,151.06,151.02,14.65237141]
[1749316711858,8.03077195,151.06,151.02,6.62159946]
[1749316712163,8.03077195,151.06,151.02,14.65237141]
[1749316713062,8.03077195,151.06,151.02,6.62159946]
[1749316713242,14.65070955,151.06,151.02,8.03077195]
[1749316713840,14.65070955,151.06,151.01,95.32190352]
[1749316714054,14.65070955,151.06,151.02,8.03077195]
[1749316714656,14.65070955,151.06,151.01,95.32190352]
[1749316714837,14.65070955,151.06,151.02,8.03077195]
[1749316715362,8.03077195,151.06,151.02,14.65234719]
[1749316718837,14.65068468,151.06,151.02,8.03077195]
[1749316719659,14.65068468,151.06,151.01,103.35266934]
[1749316720584,8.03077195,151.05,151.01,88.7]
[1749316722165,6.62076271,151.04,151.01,88.7]
[1749316722769,14.65127963,151.05,151.01,8.03077195]
[1749316722957,6.62006263,151.06,151.01,8.03077195]
[1749316723266,14.65083458,151.06,151.01,8.03077195]
[1749316724446,14.65083458,151.06,151.02,2.46700404]
[1749316724645,14.65083458,151.06,151.01,14.65272989]
[1749316724863,8.03077195,151.07,151.03,8.03077195]
[1749316725849,27.6571,151.09,151.03,8.03077195]
[1749316726047,35.68787195,151.09,151.04,10.49628038]
[1749316726260,42.30650013,151.09,151.04,8.03077195]
[1749316726658,42.30650013,151.09,151.04,14.65133262]
[1749316727643,8.03077195,151.08,151.03,8.03077195]
[1749316727848,8.03077195,151.07,151.03,8.03077195]
[1749316729856,14.65042239,151.07,151.02,14.65241146]
[1749316730056,14.65042239,151.07,151.03,2.4643173]
[1749316730384,14.65042239,151.07,151.02,14.65241146]
[1749316730677,14.65042239,151.07,151.03,2.46528473]
[1749316730882,14.65042239,151.07,151.02,14.65241146]
[1749316731656,14.65042239,151.07,151.02,103.35241146]
[1749316731860,14.65042239,151.07,151.03,2.46523336]
[1749316732166,14.65042239,151.07,151.02,103.35241146]
[1749316732567,14.65042239,151.07,151.03,2.46523698]
[1749316732760,8.03077195,151.07,151.02,103.35241146]
[1749316732954,8.03077195,151.07,151.03,8.03077195]
[1749316736084,8.03077195,151.07,151.03,14.65183588]
[1749316738578,14.65024201,151.07,151.03,14.65183588]
[1749316738882,14.65024201,151.07,151.04,2.46553973]
[1749316739096,14.65024201,151.07,151.03,14.65183588]
[1749316739294,14.65024201,151.07,151.04,2.46554353]
[1749316739464,8.03077195,151.07,151.03,14.65183588]
[1749316740824,8.03077195,151.07,151.04,2.4716487]
[1749316740985,8.03077195,151.07,151.05,2.4716487]
[1749316741199,8.03077195,151.07,151.03,14.65183588]
[1749316741360,8.03077195,151.07,151.04,2.4721817]
[1749316741573,8.03077195,151.07,151.05,2.47218141]
[1749316741767,8.03077195,151.07,151.03,14.65183588]
[1749316742084,8.03077195,151.07,151.04,2.4724579]
[1749316742272,8.03077195,151.07,151.05,2.4724579]
[1749316742469,8.03077195,151.07,151.03,14.65183588]
[1749316742686,8.03077195,151.07,151.04,2.47293931]
[1749316742872,8.03077195,151.07,151.05,2.47293931]
[1749316743074,8.03077195,151.07,151.03,14.65183588]
[1749316743384,50.7785115,151.12,151.06,8.03077195]
[1749316743566,8.03077195,151.09,151.05,8.03077195]
[1749316743763,44.64964886,151.12,151.05,8.03077195]
[1749316743764,24.7785115,151.12,151.06,2.47305773]
[1749316744089,8.03077195,151.11,151.07,2.47271174]
[1749316744385,8.03077195,151.11,151.07,8.03077195]
[1749316744592,8.03077195,151.12,151.08,6.61900979]
[1749316744777,8.26649338,151.13,151.08,14.64978174]
[1749316744778,8.03077195,151.13,151.08,14.64978174]
[1749316745778,14.64774323,151.13,151.09,2.46804563]
[1749316745974,14.64774323,151.13,151.08,14.64978174]
[1749316746301,8.03077195,151.13,151.09,10.49846669]
[1749316746474,8.03077195,151.14,151.1,2.46769474]
[1749316746682,8.03077195,151.14,151.09,8.03077195]
[1749316747003,9.68037195,151.17,151.13,8.03077195]
[1749316747967,16.29561034,151.17,151.13,8.03077195]
[1749316750404,8.03077195,151.16,151.11,8.03077195]
[1749316750585,8.03077195,151.15,151.11,8.03077195]
[1749316751793,14.64687719,151.15,151.11,8.03077195]
[1749316752194,14.64687719,151.15,151.1,8.03077195]
[1749316752397,8.03077195,151.14,151.09,88.7]
[1749316752604,8.03077195,151.14,151.09,96.73077195]
[1749316753610,14.64744402,151.14,151.09,96.73077195]
[1749316753901,8.03077195,151.14,151.09,96.73077195]
[1749316754495,8.03077195,151.14,151.09,103.34904034]
[1749316754877,8.03077195,151.14,151.1,8.03077195]
[1749316755195,8.03077195,151.14,151.09,103.34904034]
[1749316755692,8.03077195,151.15,151.1,8.03077195]
[1749316757500,14.64690157,151.15,151.1,8.03077195]
[1749316759100,8.03077195,151.13,151.09,14.64904034]
[1749316760006,8.03077195,151.14,151.1,8.03077195]
[1749316760390,8.03077195,151.11,151.06,88.7]
[1749316760699,8.03077195,151.1,151.06,96.73077195]
[1749316760880,8.03077195,151.11,151.06,96.73077195]
[1749316761294,8.03077195,151.11,151.07,8.03077195]
[1749316761807,8.03077195,151.11,151.07,14.65001115]
[1749316762007,6.61720721,151.13,151.07,14.65001115]
[1749316762208,8.03077195,151.13,151.08,8.03077195]
[1749316762383,8.03077195,151.12,151.08,8.03077195]
[1749316763087,8.03077195,151.12,151.08,14.64948958]
[1749316763307,8.03077195,151.12,151.08,103.34948958]
[1749316765189,8.03077195,151.12,151.08,96.73077195]
[1749316765386,14.64805842,151.12,151.08,96.73077195]
[1749316770817,8.03077195,151.13,151.09,8.03077195]
[1749316772615,8.03077195,151.12,151.08,96.73077195]
[1749316772818,14.64844803,151.12,151.08,96.73077195]
[1749316776110,8.03077195,151.12,151.08,96.73077195]
[1749316776789,14.64814109,151.12,151.08,96.73077195]
[1749316779214,14.64814109,151.12,151.08,103.34977774]
[1749316779418,14.6477754,151.13,151.08,103.34977774]
[1749316781498,8.03077195,151.12,151.08,103.34977774]
[1749316782722,8.03077195,151.12,151.08,96.73077195]
[1749316784408,14.64809017,151.12,151.08,96.73077195]
[1749316785715,14.64778201,151.13,151.08,103.34966903]
[1749316785901,14.64778201,151.13,151.09,2.46313946]
[1749316786101,14.64778201,151.13,151.08,103.34966903]
[1749316786506,14.64778201,151.13,151.09,2.46305741]
[1749316786709,14.64778201,151.13,151.08,103.34966903]
[1749316786909,14.64778201,151.13,151.09,2.46298139]
[1749316787230,11.7570495,151.13,151.09,2.46307481]
[1749316787434,11.7570495,151.13,151.08,100.45893652]
[1749316787632,11.7570495,151.13,151.09,2.46297731]
[1749316787927,11.7570495,151.13,151.08,100.45893652]
[1749316788130,11.7570495,151.13,151.09,2.46306665]
[1749316788333,11.7570495,151.13,151.08,100.45893652]
[1749316788532,11.7570495,151.13,151.09,2.46295546]
[1749316788743,11.7570495,151.13,151.08,100.45893652]
[1749316789312,11.7570495,151.13,151.09,2.46501398]
[1749316789506,11.7570495,151.13,151.08,100.45893652]
[1749316789714,11.7570495,151.13,151.09,2.4649797]
[1749316789915,11.7570495,151.13,151.08,100.45893652]
[1749316790151,11.7570495,151.13,151.09,2.46524826]
[1749316790451,11.7570495,151.13,151.08,100.45893652]
[1749316790620,11.7570495,151.13,151.09,2.46536031]
[1749316790829,11.7570495,151.13,151.08,100.45893652]
[1749316791248,11.7570495,151.13,151.09,2.46536492]
[1749316791449,11.7570495,151.13,151.08,100.45893652]
[1749316791755,11.7570495,151.13,151.09,2.46490735]
[1749316791922,11.7570495,151.13,151.08,100.45893652]
[1749316792622,11.7570495,151.13,151.09,2.46463723]
[1749316792823,5.14003944,151.12,151.08,100.45893652]
[1749316793050,5.14003944,151.12,151.09,2.46607751]
[1749316793381,5.14003944,151.12,151.08,100.45893652]
[1749316793731,5.14003944,151.12,151.09,2.465994]
[1749316793927,5.14003944,151.12,151.1,2.46592238]
[1749316794244,5.14003944,151.12,151.08,100.45893652]
[1749316794437,5.14003944,151.12,151.09,2.46535423]
[1749316794741,5.14003944,151.12,151.1,2.46531645]
[1749316794917,5.14003944,151.12,151.08,100.45893652]
[1749316795117,5.14003944,151.12,151.09,2.46527413]
[1749316795340,11.75714092,151.13,151.08,100.45893652]
[1749316795841,11.75714092,151.13,151.09,2.4661341]
[1749316796016,11.75714092,151.13,151.1,2.46613394]
[1749316796216,11.75714092,151.13,151.08,100.45893652]
[1749316797037,11.75714092,151.13,151.09,2.46780314]
[1749316797252,5.14003944,151.14,151.1,9.08582789]
[1749316797569,11.75647003,151.14,151.09,11.75844109]
[1749316797744,11.75647003,151.14,151.1,2.46725809]
[1749316797943,11.75647003,151.14,151.11,2.46710759]
[1749316798160,11.75647003,151.14,151.1,5.14003944]
[1749316798344,11.75647003,151.14,151.11,2.46699869]
[1749316798542,11.75647003,151.14,151.1,5.14003944]
[1749316798745,5.14003944,151.13,151.09,11.75844109]
[1749316799255,5.14003944,151.13,151.1,2.46728826]
[1749316799456,5.14003944,151.13,151.11,2.4670323]
[1749316799771,5.14003944,151.13,151.09,100.45844109]
[1749316799952,5.14003944,151.13,151.1,2.46682711]
[1749316800152,5.14003944,151.13,151.09,100.45844109]
[1749316801158,5.14003944,151.13,151.1,2.46685481]
[1749316801365,5.14003944,151.13,151.09,100.45844109]
[1749316801662,5.14003944,151.13,151.1,2.46710344]
[1749316801875,5.14003944,151.13,151.09,100.45844109]
[1749316802366,5.14003944,151.13,151.1,2.4670537]
[1749316802542,5.14003944,151.13,151.11,2.46710839]
[1749316802743,11.75687103,151.13,151.09,100.45844109]
[1749316803061,11.75687103,151.13,151.1,2.46699216]
[1749316803367,11.75687103,151.13,151.11,2.46699221]
[1749316803567,11.75687103,151.13,151.09,100.45844109]
[1749316803955,11.75687103,151.13,151.1,2.46692735]
[1749316804261,11.75687103,151.13,151.11,2.46694028]
[1749316804463,11.75687103,151.13,151.09,100.45844109]
[1749316804658,11.75687103,151.13,151.1,2.46634558]
[1749316804865,11.75687103,151.13,151.11,2.466144]
[1749316805056,11.75687103,151.13,151.09,100.45844109]
[1749316805257,11.75687103,151.13,151.1,2.46645737]
[1749316805450,11.75687103,151.13,151.11,2.46647318]
[1749316805652,11.75687103,151.13,151.09,100.45844109]
[1749316805846,5.14003944,151.13,151.09,100.45844109]
[1749316806344,5.14003944,151.13,151.1,2.46681159]
[1749316806544,5.14003944,151.13,151.11,2.46681028]
[1749316806745,11.75661226,151.14,151.09,100.45844109]
[1749316806947,6.78963944,151.17,151.12,5.14003944]
[1749316807250,5.14003944,151.16,151.13,2.46599447]
[1749316807565,5.14003944,151.16,151.12,93.84003944]
[1749316808269,5.14003944,151.16,151.13,2.46782317]
[1749316808572,5.14003944,151.16,151.14,2.46809209]
[1749316808755,5.14003944,151.16,151.12,100.45726236]
[1749316808953,5.14003944,151.16,151.13,2.4674278]
[1749316809153,5.14003944,151.16,151.14,2.46742964]
[1749316809473,5.14003944,151.17,151.12,100.45726236]
[1749316809648,5.14003944,151.17,151.13,2.46755887]
[1749316809847,5.14003944,151.17,151.14,2.46749128]
[1749316810074,5.14003944,151.17,151.13,6.61678798]
[1749316810075,5.14003944,151.17,151.15,2.46678039]
[1749316810265,5.14003944,151.17,151.13,11.75682742]
[1749316810754,5.14003944,151.17,151.14,2.46671714]
[1749316810956,5.14003944,151.17,151.15,2.46685009]
[1749316811162,5.14003944,151.17,151.12,100.4571492]
[1749316811163,11.75523393,151.17,151.12,100.4571492]
[1749316811357,11.75523393,151.17,151.13,2.4667984]
[1749316811553,11.75523393,151.17,151.14,2.46692337]
[1749316811756,11.75523393,151.17,151.15,2.46692308]
[1749316811972,11.75523393,151.17,151.12,100.4571492]
[1749316812276,11.75523393,151.17,151.13,2.4665708]
[1749316812468,11.75523393,151.17,151.14,2.46657007]
[1749316812778,11.75523393,151.17,151.12,100.4571492]
[1749316812980,11.75523393,151.17,151.13,2.46665872]
[1749316813154,11.75523393,151.17,151.14,2.46665872]
[1749316813354,11.75523393,151.17,151.12,100.4571492]
[1749316813565,11.75523393,151.17,151.13,2.46605933]
[1749316813767,5.14003944,151.17,151.14,2.46576818]
[1749316813955,5.14003944,151.17,151.13,5.14003944]
[1749316814151,5.14003944,151.17,151.14,2.46563725]
[1749316814367,5.14003944,151.17,151.13,5.14003944]
[1749316814573,5.14003944,151.17,151.14,2.46601703]
[1749316814763,5.14003944,151.17,151.15,2.46614198]
[1749316814963,5.14003944,151.17,151.13,5.14003944]
[1749316814964,11.75514604,151.17,151.13,5.14003944]
[1749316815166,5.14003944,151.17,151.14,2.46612555]
[1749316815382,5.14003944,151.17,151.15,2.46605916]
[1749316815581,5.14003944,151.17,151.13,11.756716]
[1749316815912,5.14003944,151.17,151.14,2.46657559]
[1749316816181,5.14003944,151.17,151.15,2.4667106]
[1749316816382,5.14003944,151.17,151.13,11.756716]
[1749316816678,5.14003944,151.17,151.14,2.46682419]
[1749316816879,5.14003944,151.17,151.15,2.46647445]
[1749316817172,5.14003944,151.17,151.13,11.756716]
[1749316817380,5.14003944,151.17,151.14,2.46660804]
[1749316817577,5.14003944,151.17,151.15,2.46648022]
[1749316817766,5.14003944,151.17,151.13,100.456716]
[1749316817967,5.14003944,151.17,151.14,2.46683406]
[1749316818166,5.14003944,151.17,151.13,100.456716]
[1749316818578,5.14003944,151.17,151.14,2.46690752]
[1749316818783,6.17954269,151.19,151.16,5.14003944]
[1749316819078,6.17954269,151.19,151.17,5.14003944]
[1749316819280,6.17954269,151.19,151.18,7.60534071]
[1749316819456,6.17954269,151.19,151.18,7.60506532]
[1749316819653,6.17954269,151.19,151.18,5.14003944]
[1749316820079,6.17954269,151.19,151.18,11.754671]
[1749316822581,6.17954269,151.19,151.18,5.14003944]
[1749316824668,6.17954269,151.19,151.18,11.754671]
[1749316826507,6.17954269,151.19,151.18,100.454671]
[1749316827178,6.17954269,151.19,151.18,140.654671]
[1749316828889,6.17954269,151.19,151.18,88.7]
[1749316829571,6.17954269,151.19,151.18,93.84003944]
[1749316831401,6.17954269,151.19,151.18,96.72140855]
[1749316832987,6.17954269,151.19,151.18,88.7]
[1749316833191,14.20095124,151.19,151.16,10.28]
[1749316833399,8.02140855,151.17,151.16,10.28]
[1749316833694,8.02140855,151.17,151.12,107.00140855]
[1749316833867,8.02140855,151.15,151.12,10.28]
[1749316834065,8.02140855,151.14,151.12,10.28]
[1749316834297,8.02140855,151.15,151.12,10.28]
[1749316836106,8.02140855,151.15,151.12,16.89710578]
[1749316839200,8.02140855,151.16,151.12,16.89710578]
[1749316844405,8.02140855,151.16,151.12,24.91851433]
[1749316845992,6.61475935,151.18,151.12,24.91851433]
[1749316846197,8.02140855,151.16,151.12,24.91851433]
[1749316849921,8.02140855,151.16,151.12,113.61851433]
[1749316850222,6.61475935,151.18,151.12,113.61851433]
[1749316850223,8.02140855,151.17,151.12,113.61851433]
[1749316851015,8.02140855,151.17,151.13,8.02140855]
[1749316851202,14.20095124,151.19,151.14,8.02140855]
[1749316851403,8.02140855,151.18,151.14,8.02140855]
[1749316851928,8.02140855,151.18,151.14,14.63761528]
[1749316855327,11.31601294,151.19,151.14,11.75267698]
[1749316855520,6.17954269,151.19,151.16,5.13647025]
[1749316855907,6.17954269,151.19,151.17,5.13647025]
[1749316856535,6.17954269,151.19,151.17,11.75145816]
[1749316857129,6.17954269,151.19,151.18,5.13647025]
[1749316858735,6.17954269,151.19,151.18,11.75110181]
[1749316859229,6.17954269,151.19,151.18,14.63455976]
[1749316861822,6.17954269,151.19,151.18,17.08849441]
[1749316862029,6.17954269,151.19,151.18,14.63455976]
[1749316862523,6.17954269,151.19,151.18,17.08924999]
[1749316862732,6.17954269,151.19,151.18,14.63455976]
[1749316863442,6.17954269,151.19,151.18,17.08860946]
[1749316863739,6.17954269,151.19,151.18,33.56853176]
[1749316864432,6.17954269,151.19,151.18,36.02173068]
[1749316864636,6.17954269,151.19,151.18,33.56853176]
[1749316865021,6.17954269,151.19,151.18,36.02038733]
[1749316865339,6.17954269,151.19,151.18,33.56853176]
[1749316865710,6.17954269,151.19,151.18,36.02057346]
[1749316865930,6.17954269,151.19,151.18,41.35081669]
[1749316866138,6.17954269,151.19,151.18,41.35075701]
[1749316866335,6.17954269,151.19,151.18,41.35075785]
[1749316866527,6.17954269,151.19,151.18,38.89853937]
[1749316867036,6.17954269,151.19,151.18,41.35064652]
[1749316867240,6.17954269,151.19,151.18,38.89853937]
[1749316867427,6.17954269,151.19,151.18,41.35064652]
[1749316867619,6.17954269,151.19,151.18,130.05037813]
[1749316868640,6.17954269,151.19,151.18,130.05004493]
[1749316868849,6.17954269,151.19,151.18,130.0501078]
[1749316869035,6.17954269,151.19,151.18,127.59853937]
[1749316869219,6.17954269,151.19,151.18,130.050271]
[1749316870439,6.17954269,151.19,151.18,130.04528821]
[1749316870629,6.17954269,151.19,151.18,127.59853937]
[1749316870944,6.17954269,151.19,151.18,130.04531405]
[1749316871142,6.17954269,151.19,151.18,130.04264559]
[1749316871934,6.17954269,151.19,151.18,127.59853937]
[1749316872454,6.17954269,151.19,151.18,130.04283319]
[1749316872745,6.17954269,151.19,151.18,130.04354607]
[1749316872954,6.17954269,151.19,151.18,127.59853937]
[1749316873126,6.17954269,151.19,151.18,130.04351993]
[1749316873922,6.17954269,151.19,151.18,130.0435285]
[1749316874121,6.17954269,151.19,151.18,138.06337807]
[1749316874323,1.5043,151.28,151.21,26.0]
[1749316874551,1.5043,151.28,151.24,8.0199282]
[1749316874723,8.11458237,151.28,151.24,8.0199282]
[1749316874932,16.13451057,151.28,151.24,8.0199282]
[1749316876751,16.13451057,151.28,151.25,8.0199282]
[1749316876752,1.5043,151.28,151.25,8.0199282]
[1749316877057,1.5043,151.28,151.25,96.7199282]
[1749316877927,14.62853745,151.32,151.27,8.0199282]
[1749316878141,14.62853745,151.32,151.28,8.0199282]
[1749316879045,8.0199282,151.32,151.29,8.0199282]
[1749316879251,14.68457709,151.33,151.3,8.0199282]
[1749316879459,8.22917709,151.33,151.3,8.0199282]
[1749316880732,8.22917709,151.33,151.29,8.0199282]
[1749316881755,6.60754452,151.35,151.32,8.0199282]
[1749316881933,14.6268636,151.36,151.32,8.0199282]
[1749316882536,6.6069354,151.36,151.33,8.0199282]
[1749316883247,1.6017,151.37,151.33,14.62800204]
[1749316883435,1.6017,151.37,151.34,8.0199282]
[1749316883635,14.62555683,151.39,151.34,8.0199282]
[1749316883966,8.0199282,151.37,151.32,10.28]
[1749316884133,8.0199282,151.33,151.29,8.0199282]
[1749316884440,8.0199282,151.33,151.29,18.2999282]
[1749316884756,8.0199282,151.34,151.29,18.2999282]
[1749316885347,14.62783727,151.34,151.29,18.2999282]
[1749316885745,14.62783727,151.34,151.3,8.0199282]
[1749316886039,8.0199282,151.33,151.29,18.2999282]
[1749316886240,6.60790907,151.34,151.29,10.28]
[1749316886447,8.0199282,151.32,151.29,10.28]
[1749316888048,14.62877943,151.32,151.29,10.28]
[1749316888252,8.0199282,151.3,151.29,10.28]
[1749316888460,8.0199282,151.3,151.25,44.2999282]
[1749316888758,6.60885123,151.32,151.26,8.0199282]
[1749316889062,8.0199282,151.31,151.27,8.0199282]
[1749316889556,16.52069882,151.33,151.25,42.89152448]
[1749316889557,8.0199282,151.33,151.29,8.0199282]
[1749316890472,9.6264282,151.35,151.3,8.0199282]
[1749316890647,1.6065,151.35,151.31,8.0199282]
[1749316891667,8.0199282,151.34,151.3,18.2999282]
[1749316891837,8.0199282,151.33,151.3,10.28]
[1749316892162,14.62821548,151.33,151.3,10.28]
[1749316892365,8.0199282,151.32,151.3,10.28]
[1749316893843,8.0199282,151.31,151.3,10.28]
[1749316894648,14.62878661,151.32,151.3,10.28]
[1749316897669,8.0199282,151.31,151.3,10.28]
[1749316899164,14.62887671,151.31,151.3,10.28]
[1749316899558,14.62887671,151.31,151.26,98.98]
[1749316899863,8.0199282,151.3,151.26,98.98]
[1749316900072,8.0199282,151.3,151.26,106.9999282]
[1749316900590,8.0199282,151.3,151.26,18.2999282]
[1749316901654,8.0199282,151.3,151.26,24.91095576]
[1749316903456,8.0199282,151.3,151.26,10.28]
[1749316903981,8.0199282,151.3,151.26,16.89110267]
[1749316906374,8.0199282,151.3,151.26,105.59110267]
[1749316907682,14.62933763,151.3,151.26,98.98]
[1749316908461,8.0199282,151.3,151.26,113.61093844]
[1749316912192,14.62936103,151.3,151.26,106.9999282]
[1749316914363,8.0199282,151.29,151.26,98.98]
[1749316917659,8.0199282,151.29,151.26,105.59104363]
[1749316919869,8.0199282,151.29,151.26,98.98]
[1749316920586,8.0199282,151.29,151.26,10.28]
[1749316920587,8.0199282,151.27,151.26,10.28]
[1749316923579,8.0199282,151.28,151.26,10.28]
[1749316924181,8.0199282,151.27,151.26,10.28]
[1749316924379,8.0199282,151.27,151.24,88.7]
[1749316924584,8.0199282,151.26,151.24,88.7]
[1749316925279,8.0199282,151.27,151.23,8.0199282]
[1749316925477,8.0199282,151.28,151.23,8.0199282]
[1749316925680,8.0199282,151.28,151.24,9.07332222]
[1749316925878,8.0199282,151.26,151.22,147.1599282]
[1749316926079,8.0199282,151.25,151.23,2.4607046]
[1749316926284,8.0199282,151.25,151.22,10.28]
[1749316926593,8.0199282,151.25,151.22,16.89279397]
[1749316927195,8.0199282,151.25,151.22,10.28]
[1749316927391,8.0199282,151.24,151.22,10.28]
[1749316927980,8.0199282,151.23,151.22,10.28]
[1749316928387,8.0199282,151.24,151.22,10.28]
[1749316931394,8.0199282,151.23,151.22,10.28]
[1749316934411,14.63237282,151.23,151.19,88.7]
[1749316934706,8.0199282,151.22,151.19,6.61408756]
[1749316935005,8.0199282,151.22,151.2,2.46274214]
[1749316935309,8.0199282,151.22,151.19,6.61408756]
[1749316935607,8.0199282,151.22,151.2,2.46315106]
[1749316935784,8.0199282,151.22,151.19,6.61408756]
[1749316935978,8.0199282,151.22,151.2,2.46315106]
[1749316936203,8.0199282,151.22,151.19,6.61408756]
[1749316936805,8.0199282,151.25,151.2,8.0199282]
[1749316936994,8.0199282,151.25,151.21,8.0199282]
[1749316938492,8.0199282,151.25,151.22,6.61288189]
[1749316938692,8.0199282,151.27,151.22,14.63281009]
[1749316941493,8.0199282,151.27,151.22,24.91281009]
[1749316942078,8.0199282,151.29,151.24,8.0199282]
[1749316942299,8.0199282,151.29,151.25,8.0199282]
[1749316942501,8.0199282,151.28,151.24,8.0199282]
[1749316942717,8.0199282,151.27,151.23,8.0199282]
[1749316943002,8.0199282,151.26,151.22,24.91281009]
[1749316943188,8.0199282,151.27,151.23,8.0199282]
[1749316944187,8.0199282,151.27,151.23,14.63225445]
[1749316944990,8.0199282,151.26,151.22,24.91276233]
[1749316945189,8.0199282,151.26,151.22,18.2999282]
[1749316945402,8.0199282,151.26,151.22,10.28]
[1749316945602,8.0199282,151.25,151.22,10.28]
[1749316946188,8.0199282,151.25,151.22,16.89283931]
[1749316950188,1.5975,151.28,151.22,10.28]
[1749316950189,8.0199282,151.24,151.22,10.28]
[1749316951186,8.0199282,151.23,151.22,10.28]
[1749316952904,8.0199282,151.24,151.22,10.28]
[1749316954823,8.0199282,151.23,151.22,10.28]
[1749316955820,8.0199282,151.23,151.2,6.61371129]
[1749316958801,8.0199282,151.24,151.2,14.63363949]
[1749316962596,18.64964886,151.27,151.21,8.0199282]
[1749316962597,8.0199282,151.25,151.21,8.0199282]
[1749316962921,8.0199282,151.26,151.21,8.0199282]
[1749316963225,8.0199282,151.25,151.21,8.0199282]
[1749316964201,8.0199282,151.26,151.22,8.0199282]
[1749316964724,8.0199282,151.26,151.22,6.61255784]
[1749316964899,8.0199282,151.25,151.21,14.63312223]
[1749316965105,8.0199282,151.25,151.21,6.61319403]
[1749316965311,8.0199282,151.25,151.22,2.46369731]
[1749316965510,8.0199282,151.25,151.21,6.61319403]
[1749316965709,8.0199282,151.25,151.22,2.46369731]
[1749316966002,8.0199282,151.25,151.21,6.61319403]
[1749316966218,8.0199282,151.25,151.22,2.46378286]
[1749316966402,8.0199282,151.25,151.21,6.61319403]
[1749316966605,8.0199282,151.25,151.22,2.4637644]
[1749316966810,8.0199282,151.25,151.21,6.61319403]
[1749316967433,8.0199282,151.25,151.22,2.46504613]
[1749316967613,8.0199282,151.25,151.21,6.61319403]
[1749316967813,8.0199282,151.25,151.22,2.46507912]
[1749316968016,8.0199282,151.25,151.21,6.61319403]
[1749316970224,8.0199282,151.24,151.2,113.61350876]
[1749316970407,8.0199282,151.24,151.21,2.46603086]
[1749316970613,8.0199282,151.24,151.2,98.98]
[1749316970811,8.0199282,151.24,151.21,2.4660313]
[1749316971023,8.0199282,151.24,151.2,105.59374513]
[1749316971207,8.0199282,151.24,151.21,2.46896451]
[1749316971402,8.0199282,151.24,151.2,105.59374513]
[1749316971621,8.0199282,151.24,151.21,2.46892826]
[1749316971809,8.0199282,151.24,151.2,105.59374513]
[1749316972018,8.0199282,151.24,151.21,2.46892782]
[1749316972215,8.0199282,151.26,151.21,8.0199282]
[1749316972616,8.0199282,151.26,151.22,2.46841224]
[1749316972818,8.0199282,151.26,151.23,2.46841224]
[1749316973007,8.0199282,151.26,151.21,8.0199282]
[1749316973207,8.0199282,151.26,151.22,2.46856249]
[1749316973415,8.0199282,151.26,151.23,2.46856249]
[1749316973608,8.0199282,151.26,151.21,8.0199282]
[1749316973816,8.0199282,151.25,151.21,8.0199282]
[1749316974030,8.0199282,151.25,151.21,6.61309057]
[1749316974230,8.0199282,151.25,151.22,2.46858113]
[1749316974431,8.0199282,151.25,151.21,6.61309057]
[1749316974634,8.0199282,151.25,151.22,2.46866684]
[1749316974813,8.0199282,151.25,151.23,2.46866684]
[1749316975014,8.0199282,151.25,151.21,6.61309057]
[1749316975214,8.0199282,151.25,151.22,2.46875126]
[1749316975526,8.0199282,151.25,151.21,6.61309057]
[1749316975728,8.0199282,151.25,151.22,2.4687507]
[1749316975925,8.0199282,151.25,151.21,14.63301877]
[1749316976113,8.0199282,151.26,151.22,2.4683217]
[1749316976314,8.0199282,151.26,151.23,2.4683217]
[1749316976615,8.0199282,151.26,151.21,14.63301877]
[1749316976616,8.0199282,151.26,151.24,2.4683217]
[1749316976810,8.0199282,151.26,151.21,14.63301877]
[1749316977017,8.0199282,151.26,151.22,2.46855806]
[1749316977223,8.0199282,151.26,151.23,2.46865951]
[1749316977426,8.0199282,151.25,151.21,14.63301877]
[1749316978114,8.0199282,151.25,151.22,2.4691744]
[1749316978315,8.0199282,151.25,151.21,14.63301877]
[1749316978515,8.0199282,151.25,151.22,9.08199956]
[1749316978733,8.0199282,151.25,151.22,6.61280244]
[1749316979337,5.1317833,151.25,151.22,6.61280244]